{"text_format":"1","workbook":"xlsx","n_sheets":9,"sheets":["1_STRAN REGIJSKO","1_STRAN LIGE","REGIJSKO PRVENSTVO čLANI","REG PRV ML ž VSE","REG PRV MLML VSI","REGIJSKO PRVENSTVO ML PU PI  M","NASLOVNICA","POROČILO","REZULTATI"],"not_rendered":{"charts":0,"images":3,"macros":0,"external_links":0,"defined_names":0,"comments":0,"pivot_tables":0},"unopened":[],"bounds":{"document_bytes":16777216,"sheet_cells":100000,"rows_first":2000,"rows_last":500,"rows_between":2000,"halvings":0,"cell_chars":16384,"cell_head_chars":4096},"cells_cut":0,"cells_raw":0,"read":"whole","date_system":"1900"}

{"sheet":"1_STRAN REGIJSKO","index":0,"n_rows":22,"n_cols":2,"rows_kept":22,"cut":false,"hidden":false,"merged":[[2,0,2,7],[22,1,22,7],[19,1,19,7],[20,1,20,7],[21,1,21,7],[9,2,14,6],[5,1,7,7],[18,1,18,7]]}
[]
[]
["       SD LOTRIČ ŽELEZNIKI"]
[]
[]
[]
[]
[]
[]
[]
[]
[]
[]
[]
[]
[]
[]
[]
[]
[null,"REGIJSKO PRVENSTVO"]
[null,2005]
[null,"ŽELEZNIKI, 12. IN 13.2.2005"]

{"sheet":"1_STRAN LIGE","index":1,"n_rows":21,"n_cols":2,"rows_kept":21,"cut":false,"hidden":false,"merged":[[9,2,14,6],[5,1,7,7],[18,1,18,7],[2,0,2,7],[22,1,22,7],[19,1,19,7],[20,1,20,7],[21,1,21,7]]}
[]
[]
["       SD LOTRIČ ŽELEZNIKI"]
[]
[]
[]
[]
[]
[]
[]
[]
[]
[]
[]
[]
[]
[]
[]
[null,"5. KOLO"]
[null,"DRŽAVNA LIGA"]
[null,"ŽELEZNIKI, 12. IN 13.2.2005"]

{"sheet":"REGIJSKO PRVENSTVO čLANI","index":2,"n_rows":0,"n_cols":0,"rows_kept":0,"cut":false,"hidden":false,"merged":[]}

{"sheet":"REG PRV ML ž VSE","index":3,"n_rows":6,"n_cols":9,"rows_kept":6,"cut":false,"hidden":false,"merged":[[4,13,4,18],[18,13,18,18],[33,13,33,18],[46,13,46,18]]}
["REGIJSKO PRVENSTVO ZA MLADINKE - PUŠKA"]
[]
["POSAMEZNO"]
[]
["UVR.","PRIIMEK IN IME","EKIPA","Št.št.","1.","2.","3.","4.","SKUP."]
[1,"Repič Kaja","KAMNIK",183,95,95,95,92,377]

{"sheet":"REG PRV MLML VSI","index":4,"n_rows":50,"n_cols":19,"rows_kept":50,"cut":false,"hidden":false,"merged":[[4,13,4,18],[18,13,18,18],[33,13,33,18],[46,13,46,18]]}
["REGIJSKO PRVENSTVO ZA MLAJŠE MLADINCE - PUŠKA",null,null,null,null,null,null,null,null,null,"REGIJSKO PRVENSTVO ZA MLAJŠE MLADINCE - PUŠKA"]
[]
["POSAMEZNO",null,null,null,null,null,null,null,null,null,"EKIPNO"]
[]
["UVR.","PRIIMEK IN IME","EKIPA","Št.št.","1.","2.","3.","4.","SKUP.",null,"UVR.","EKIPA","SKUP.","TEKMOVALCI"]
[1,"Travnik Primož","PREDOSLJE",202,89,83,82,84,338,null,1,"PREDOSLJE",916,"Travnik Primož",338,"Kerč Rok",308,"Suljič Alen",270]
[2,"Zver Iztok","KAMNIK",188,87,87,83,79,336]
[3,"Zore Žiga","KAMNIK",190,84,75,84,90,333]
[4,"Kerč Rok","PREDOSLJE",203,78,65,80,85,308]
[5,"Boroš Miha","TRZIN",151,71,61,78,72,282]
[6,"Suljič Alen","PREDOSLJE",204,70,64,61,75,270]
[]
[]
[]
["REGIJSKO PRVENSTVO ZA MLAJŠE MLADINCE - PIŠTOLA",null,null,null,null,null,null,null,null,null,"REGIJSKO PRVENSTVO ZA MLAJŠE MLADINCE - PIŠTOLA"]
[]
["POSAMEZNO",null,null,null,null,null,null,null,null,null,"EKIPNO"]
[]
["UVR.","PRIIMEK IN IME","EKIPA","Št.št.","1.","2.","3.","4.","SKUP.",null,"UVR.","EKIPA","SKUP.","TEKMOVALCI"]
[1,"Božič Gašper","GORENJA VAS",218,92,86,90,92,360,null,1,"GORENJA VAS",1002,"Petrovič Vedran",315,"Božič Gašper",360,"Jeram Tomaž",327]
[2,"Kne Tadej","KRANJ",231,87,85,84,83,339]
[3,"Jeram Tomaž","GORENJA VAS",217,87,81,73,86,327]
[4,"Grbanovič Davor","ŠKOFJA LOKA",182,81,80,82,74,317]
[5,"Logar Žiga","LOTRIČ ŽELEZNIKI",216,78,83,79,76,316]
[6,"Petrovič Vedran","GORENJA VAS",219,70,73,87,85,315]
[7,"Golob Andrej ","TRZIN",150,81,74,74,78,307]
[]
[]
[]
["REGIJSKO PRVENSTVO ZA MLAJŠE MLADINKE - PUŠKA",null,null,null,null,null,null,null,null,null,"REGIJSKO PRVENSTVO ZA MLAJŠE MLADINKE - PUŠKA"]
[]
["POSAMEZNO",null,null,null,null,null,null,null,null,null,"EKIPNO"]
[]
["UVR.","PRIIMEK IN IME","EKIPA","Št.št.","1.","2.","3.","4.","SKUP.",null,"UVR.","EKIPA","SKUP.","TEKMOVALCI"]
[1,"Lekše Katja","RADOVLJICA",197,95,96,98,94,383,null,1,"RADOVLJICA",1146,"Mitrič Snežana",383,"Šarič Selma",380,"Lekše Katja",383]
[2,"Mitrič Snežana","RADOVLJICA",199,97,97,97,92,383]
[3,"Šarič Selma","RADOVLJICA",198,94,96,97,93,380]
[4,"Benedičič Nina","LOTRIČ ŽLEZNIKI",168,81,91,89,85,346]
[5,"Hodnik Ajda","PREDOSLJE",205,73,68,81,60,282]
[]
[]
[]
["REGIJSKO PRVENSTVO ZA MLAJŠE MLADINKE - PIŠTOLA",null,null,null,null,null,null,null,null,null,"REGIJSKO PRVENSTVO ZA MLAJŠE MLADINKE - PIŠTOLA"]
[]
["POSAMEZNO",null,null,null,null,null,null,null,null,null,"EKIPNO"]
[]
["UVR.","PRIIMEK IN IME","EKIPA","Št.št.","1.","2.","3.","4.","SKUP.",null,"UVR.","EKIPA","SKUP.","TEKMOVALCI"]
[1,"Prelec Romana","LOTRIČ ŽELEZNIKI",167,88,88,90,82,348,null,1,"LOTRIČ ŽELEZNIKI",948,"Prelec Romana",348,"Božiček Simona",325,"Prah Aleksandra",275]
[2,"Božiček Simona","LOTRIČ ŽELEZNIKI",192,84,78,84,79,325]
[3,"Prah Aleksandra","LOTRIČ ŽELEZNIKI",191,65,69,69,72,275]

{"sheet":"REGIJSKO PRVENSTVO ML PU PI  M","index":5,"n_rows":31,"n_cols":21,"rows_kept":31,"cut":false,"hidden":false,"merged":[[19,15,19,20]]}
["REGIJSKO PRVENSTVO ZA MLADINCE - PUŠKA"]
[]
["POSAMEZNO"]
[]
["UVR.","PRIIMEK IN IME","EKIPA","Št.št.","1.","2.","3.","4.","5.","6.","SKUP."]
[1,"Kovaljv Borut","TRZIN",154,91,96,97,99,94,92,569]
[2,"Frelih Žiga","KRANJ",230,93,94,90,94,93,94,558]
[3,"Ugovšek Grega","KAMNIK",189,98,88,93,93,91,90,553]
[4,"Lavtar Blaž","TRIGLAV JAVORNIK",166,95,100,86,92,90,89,552]
[5,"Šifrar Jure","GORENJA VAS",227,78,81,71,92,81,89,492]
[6,"Pečnik Rok","PREDOSLJE",206,78,81,77,81,84,73,474]
[7,"Avdulahi Beni","LOTRIČ ŽELEZNIKI",157,74,84,79,76,79,66,458]
[]
[]
[]
["REGIJSKO PRVENSTVO ZA MLADINCE - PIŠTOLA",null,null,null,null,null,null,null,null,null,null,null,"REGIJSKO PRVENSTVO ZA MLADINCE - PIŠTOLA"]
[]
["POSAMEZNO",null,null,null,null,null,null,null,null,null,null,null,"EKIPNO"]
[]
["UVR.","PRIIMEK IN IME","EKIPA","Št.št.","1.","2.","3.","4.","5.","6.","SKUP.",null,"UVR.","EKIPA","SKUP.","TEKMOVALCI"]
[1,"Tomaševič Klemen","LOTRIČ ŽELEZNIKI",101,92,96,90,90,91,88,547,null,1,"ŽELEZNIKI",1563,"TOMAŠEVIČ KLEMEN",547,"PURGAR DAMJAN",518,"BENEDIČIČ JOŽE",498]
[2,"Markelj Dušan","ŠKOFJA LOKA",178,90,96,84,91,91,90,542]
[3,"Karlovšek Peter","TRZIN",48,91,88,89,85,90,90,533]
[4,"Pustotnik Tadej","DOMŽALE",16,85,84,93,91,89,87,529]
[5,"Zore Anže","KAMNIK",184,89,87,86,84,89,93,528]
[6,"Erman Matjaž","TRIGLAV JAVORNIK",164,89,87,87,81,86,88,518]
[7,"Purgar Damjan","LOTRIČ ŽELEZNIKI",201,87,86,86,87,85,87,518]
[8,"Bernot Luka","TRIGLAV JAVORNIK",165,84,86,75,86,87,88,506]
[9,"Kolar Tomaž","GORENJA VAS",226,85,79,85,83,83,87,502]
[10,"Benedičič Jože","LOTRIČ ŽELEZNIKI",232,83,86,84,87,79,79,498]
[11,"Kosmač Denis","TRZIN",156,80,81,87,73,86,87,494]

{"sheet":"NASLOVNICA","index":6,"n_rows":22,"n_cols":2,"rows_kept":22,"cut":false,"hidden":false,"merged":[[21,1,21,7],[16,1,16,7],[2,0,2,7],[4,1,6,7],[8,2,13,6],[17,1,17,7],[18,1,18,7],[19,1,19,7]]}
[]
[]
["       SD LOTRIČ ŽELEZNIKI"]
[]
[]
[]
[]
[]
[]
[]
[]
[]
[]
[]
[]
[]
[null,"DRŽAVNO PRVENSTVO ZA"]
[null,"ŠTUDENTE IN "]
[null,"DIJAKE"]
[]
[]
[null,"ŽELEZNIKI, 22.5.2011"]

{"sheet":"POROČILO","index":7,"n_rows":43,"n_cols":5,"rows_kept":43,"cut":false,"hidden":false,"merged":[]}
["ŽELEZNIKI, 22.5.2011"]
[]
["POROČILO"]
["Tekmovanje je potekalo, po pravilih ISSF in SZS, na 40. mestnem"]
[" montažnem strelišču v Ljubljani."]
["Najboljši so prejeli medalje."]
[]
["Uradnih pritožb ni bilo."]
[]
[]
[null,null,null,null,"Branko Košir, vodja tekmovanja"]
[]
["FUNKCIONARJI NA  DP ŠTUDENTE IN DIJAKE"]
["Vodja tekmovanja:",null,"Branko Košir"]
["Delegirani sodnik:",null,"Jožica Rant"]
["Delegat SZS: ",null,"Jožica Rant"]
["Sodniki za oceno tarč:",null,"Branko Košir"]
[null,null,"Jelenc Damjan"]
[null,null,"Jože Frelih"]
[null,null,"Jožica Rant"]
["Sodniki na liniji:",null,"Markelj Franci"]
[null,null,"Šuštar Jani"]
[null,null,"Medved Ksenija"]
[null,null,"Prelec Tomaž"]
["Objava rezultatov:",null,"Prelec Romana"]
[null,null,"Kaplja Nadja"]
[null,null,"Markelj Vesna"]
[]
["Žirija za pritožbe:",null,"Jožica Rant"]
[null,null,"Branko Košir"]
[null,null,"Jože Frelih"]
[]
[]
["SPONZORJI:"]
[]
[]
[]
[]
[]
[]
[null,null,"KLJUČAVNIČARSTVO ŠMID LUDVIK ŽELEZNIKI"]
[]
[null,null,"NIKA ŠIV (IZDELAVA JAKEN)"]

{"sheet":"REZULTATI","index":8,"n_rows":95,"n_cols":21,"rows_kept":95,"cut":false,"hidden":false,"merged":[[2,15,2,20],[31,15,31,20],[39,15,39,20],[18,15,18,20],[74,15,74,20],[57,15,57,20]]}
["DRŽAVNO PRVENSTVO - ŠTUDENTI PUŠKA"]
["POSAMEZNO"]
["UVR.","PRIIMEK IN IME","EKIPA","st.m.","1.","2.","3.","4.","5.","6.","SKUP."]
[1,"Černi Mitja 1991","VSŠ NOVO MESTO",8,99,98,98,99,96,99,{"$f":"SUM(E4:J4)","v":589}]
[2,"Potočnik Grega 1990","VŠ ZA LESARSTVO ŠK.LOKA",14,99,94,99,98,99,99,588]
[3,"Barič Matic 1988","FE",3,96,96,96,98,98,96,580]
[4,"Mohorko Uroš 1991","FERI",5,94,97,98,96,97,96,578]
[5,"Resman Luka 1990","TURISTICA",2,96,97,93,99,98,95,578]
[6,"Oblak Lenart 1991","Fakulteta za šport",23,93,97,95,95,99,98,577]
[7,"Bernot Gašper 1990","LUR",4,94,95,98,95,97,98,577]
[8,"Maučec Gregor 1983","F ZA NAROVOSLOVJE IN MATEMATIKO MB",7,93,100,91,96,92,97,569]
[9,"Oblak Gašper 1991","FS",19,94,94,95,94,96,96,569]
[10,"Verbančič Denis 1990","IC Piramida MB VSŠ",12,95,94,96,95,93,94,567]
[11,"Šuštar Jani 1990","FE",32,88,94,97,97,95,95,566]
[12,"Žižek Jernej 1988","FS",11,97,92,93,92,95,93,562]
[]
["DRŽAVNO PRVENSTVO - ŠTUDENTKE PUŠKA"]
["POSAMEZNO"]
["UVR.","PRIIMEK IN IME","EKIPA","st.m.","1.","2.","3.","4.","5.","6.","UP."]
[1,"Repič Kaja 1987","ŠC VELENJE",9,99,99,95,99,null,null,{"$f":"SUM(E20:J20)","v":392}]
[2,"Majstorovič Jelica 1987","FKPV  CELJE",2,95,97,99,98,null,null,{"$f":"SUM(E21:J21)","v":389}]
[3,"Smodiš Petra 1987","EKONOMSKA FAKULTETA",6,93,95,96,95,null,null,{"$f":"SUM(E22:J22)","v":379}]
[4,"Bitenc Polona 1986","FNM",11,94,97,95,93,null,null,{"$f":"SUM(E23:J23)","v":379}]
[null,null,null,null,null,null,null,null,null,null,{"$f":"SUM(E24:J24)","v":0}]
["DRŽAVNO PRVENSTVO - ŠTUDENTI PIŠTOLA"]
["POSAMEZNO"]
["UVR."]
[1,"PRIIMEK IN IME","EKIPA","st.m.","1.","2.","3.","4.","5.","6.","SKUP."]
[2,"Kunšek Blaž","Šolski center Celje",39,91,91,94,92,95,94,{"$f":"SUM(E29:J29)","v":557}]
[3,"Tomaševič Klemen","FAK. ZA UPRAVO",36,94,87,94,96,92,91,{"$f":"SUM(E30:J30)","v":554}]
[4,"Habjan Žiga 1986","FKKT",25,97,92,91,90,93,89,{"$f":"SUM(E31:J31)","v":552}]
[null,"Hadžidaov Aleksander","Fakulteta za računalništvo in informatiko",34,89,89,92,94,91,88,{"$f":"SUM(E32:J32)","v":543}]
["DRŽAVNO PRVENSTVO - ŠTUDENTKE PIŠTOLA"]
["POSAMEZNO"]
["UVR."]
[1,"PRIIMEK IN IME","EKIPA","st.m.","1.","2.","3.","4.","5.","6.","SKUP."]
[2,"Prelec Romana 1988","NTF",30,90,91,88,90,null,null,{"$f":"SUM(E37:J37)","v":359}]
[3,"Levanič Mateja 1988","Fakulteta za upravo",26,88,82,88,93,null,null,{"$f":"SUM(E38:J38)","v":351}]
[4,"Lazar Mojca 1988","Medicinska fakulteta",27,91,88,89,80,null,null,348]
[]
[]
[]
[]
[]
[]
[]
[]
[]
["DRŽAVNO PRVENSTVO - DIJAKI PUŠKA"]
["POSAMEZNO"]
["UVR."]
[null,"PRIIMEK IN IME","EKIPA","st.m.","1.","2.","3.","4.","5.","6.","SKUP."]
[1,"Peternelj Andrej 1991","TŠC Kranj",21,97,93,97,98,100,95,{"$f":"SUM(E53:J53)","v":580}]
[2,"Presterel Anže 1994","SŠ za strojništvo Šk.Loka",6,97,97,95,98,93,98,578]
[3,"Požar Karim 1994","Gimnazija Giannasio Gian Rinaldo Carli",17,96,97,93,97,97,95,575]
[4,"Štojs Tadej 1995","Gimnazija Jesenice",10,98,96,94,97,94,95,574,null,"DRŽAVNO PRVENSTVO - DIJAKI PUŠKA"]
[5,"Šumak Jan 1993","Gimnazija Ormož",9,96,96,97,96,95,94,574,null,"EKIPNO"]
[6,"Žalik Tadej 1994","Dvjezična SŠ Lendava",1,94,96,97,89,95,95,566,null,"UVR.","EKIPA","SKUP.","TEKMOVALCI"]
[7,"Tomažin Anže 1992","TŠC Kranj",22,95,95,96,94,91,92,563,null,1,"TŠC Kranj",{"$f":"+Q59+S59+U59","v":1644},"Peternel Andrej",580,"Tomažin Anže",563,"Dragičevič Žan",501]
[8,"Tripar Teo 1992","Srednja šola Pietro Coppo",16,93,96,91,91,91,98,560]
[9,"Pernat Aleš 1995","Srednja Elektro računalniška šola",15,99,82,95,94,95,90,555]
[10,"Lampreht Bojan 1993","Ekonomska šola Ljubljana",18,91,90,94,91,87,94,547]
[11,"Mirtelj Alen 1995","SŠSDL Celje",13,91,88,84,86,89,87,525]
[12,"Dragičevič Žan 1994","TŠC Kranj",24,88,85,79,83,87,79,501]
[13,"Vodenik Žiga 1995","???",20,81,79,77,82,85,83,487]
["DRŽAVNO PRVENSTVO - DIJAKINJE PUŠKA"]
["POSAMEZNO"]
["UVR."]
[null,"PRIIMEK IN IME","EKIPA","st.m.","1.","2.","3.","4.","5.","6.","SKUP."]
[1,"Razboršek Teja 1993","SREDNJA EKONOMSKA ŠOLA MARIBOR",1,98,100,96,96,null,null,{"$f":"SUM(E70:J70)","v":390}]
[2,"Mihalič Špela 1993","GIMNAZIJA MS",8,96,96,99,95,null,null,386]
[3,"Pavčnik Eva 1944","I. GIMNAZIJA CELJE",3,95,97,92,96,null,null,380]
[4,"Mulej Maruša 1995","SREDNJA OBLIKOVNA TEHNIČNA ŠOLA",5,95,94,94,96,null,null,379,null,"DRŽAVNO PRVENSTVO - DIJAKINJE PUŠKA"]
[5,"Vernik Petra 1994","GIMNAZIJA ORMOŽ",10,94,96,92,96,null,null,378,null,"EKIPNO"]
[6,"Stankovič Tanja 1993","ŠOLSKI CENTER NM",17,95,92,95,91,null,null,373,null,"UVR.","EKIPA","SKUP.","TEKMOVALCI"]
[7,"Kastelic Ines 1994","GIMNAZIJA NOVO MESTO",16,92,93,93,92,null,null,370,null,1,"GIMNAZIJA ORMOŽ",{"$f":"+Q76+S76+U76","v":1025},"Vernik Petra",378,"Kuharič Urška",355,"Štefančič Nuša",292]
[8,"Fojkar Tina 1993","GIMNAZIJA ESIC KRANJ",4,89,93,92,92,null,null,366]
[9,"Kuharič Urška 1994","GIMNAZIJA ORMOŽ",12,93,91,85,86,null,null,355]
[10,"Štefančič Nuša 1994","GIMNAZIJA ORMOŽ",14,77,73,67,75,null,null,292]
["DRŽAVNO PRVENSTVO - DIJAKI PIŠTOLA"]
["POSAMEZNO"]
["UVR."]
[1,"PRIIMEK IN IME","EKIPA","st.m.","1.","2.","3.","4.","5.","6.","SKUP."]
[2,"Venta Kevin 1991","IC Piramida MB",40,89,94,92,97,93,97,{"$f":"SUM(E84:J84)","v":562}]
[3,"Repič Rožle 1993","Srednja lesarska šola LJ",37,93,93,94,94,91,92,{"$f":"SUM(E85:J85)","v":557}]
[4,"Šmid Jan 1995","Gimnazija Šk. Loka",38,87,83,82,88,81,84,{"$f":"SUM(E86:J86)","v":505}]
[5,"Vrhunc Uroš 1995","ESIC Kranj",35,87,77,76,82,81,85,{"$f":"SUM(E87:J87)","v":488}]
["DRŽAVNO PRVENSTVO - DIJAKINJE PIŠTOLA"]
["POSAMEZNO"]
["UVR."]
[1,"PRIIMEK IN IME","EKIPA","st.m.","1.","2.","3.","4.","5.","6.","SKUP."]
[2,"Kovačič Anuša 1994","Šolski center NM",29,89,92,92,93,null,null,{"$f":"SUM(E92:J92)","v":366}]
[3,"Vodeb Katja 1993","Srednja zdravstvena šola celje",31,88,89,90,91,null,null,{"$f":"SUM(E93:J93)","v":358}]
[4,"Tomaševič Anja 1995","BTŠ Naklo",28,83,86,93,86,null,null,{"$f":"SUM(E94:J94)","v":348}]
[5,"Novak Tina 1995","Srednja zdravstvena šola celje",33,87,86,90,85,null,null,{"$f":"SUM(E95:J95)","v":348}]